fUST/lending_fUST_20250204
["ID","MTS","AMOUNT","RATE_DAILY","PERIOD"]
[351602905,1738657833813,-500.0,0.00016438,2]
[351602906,1738657833823,-150.17537591,0.00016438,2]
[351602907,1738657833904,-349.82462409,0.00016438,2]
[351602908,1738657833915,-300.97825926,0.00016438,2]
[351602909,1738657833925,-502.22760959,0.00016438,2]
[351602910,1738657833935,-544.43,0.00016438,2]
[351602911,1738657833946,-500.0,0.00016438,2]
[351602912,1738657833958,-272.24312041,0.00016438,2]
[351602913,1738657833971,-227.75687959,0.00016438,2]
[351602914,1738657833980,-500.0,0.00016438,2]
[351602915,1738657833989,-500.0,0.00016438,2]
[351602916,1738657833999,-500.0,0.00016438,2]
[351602917,1738657834009,-502.62631412,0.00016438,2]
[351602918,1738657834018,-503.28146035,0.00016438,2]
[351602919,1738657834028,-500.0,0.00016438,2]
[351602920,1738657834038,-500.0,0.00016438,2]
[351602921,1738657834048,-504.97403418,0.00016438,2]
[351602922,1738657834058,-500.0,0.00016438,2]
[351602923,1738657834067,-500.0,0.00016438,2]
[351602924,1738657834076,-508.6403079,0.00016438,2]
[351602925,1738657834086,-740.89,0.00016438,2]
[351602926,1738657834096,-500.0,0.00016438,2]
[351602927,1738657834106,-500.0,0.00016438,2]
[351602928,1738657834116,-345.48851394,0.00016438,2]
[351602929,1738657834128,-154.51148606,0.00016438,2]
[351602930,1738657834138,-500.0,0.00016438,2]
[351602931,1738657834148,-500.0,0.00016438,2]
[351602932,1738657834162,-500.0,0.00016438,2]
[351602933,1738657834172,-378.57541349,0.00016438,2]
[351602939,1738657838529,-121.42458651,0.00016438,2]
[351602940,1738657838539,-1585.63,0.00016438,2]
[351602941,1738657838548,-500.0,0.00016438,2]
[351602942,1738657838558,-990.44,0.00016438,2]
[351602943,1738657838567,-500.0,0.00016438,2]
[351602944,1738657838576,-691.46,0.00016438,2]
[351602945,1738657838585,-691.46,0.00016438,2]
[351602946,1738657838595,-691.46,0.00016438,2]
[351602947,1738657838604,-691.46,0.00016438,2]
[351602948,1738657838613,-691.46,0.00016438,2]
[351602949,1738657838622,-691.46,0.00016438,2]
[351602951,1738657838632,-500.0,0.00016438,2]
[351602953,1738657838641,-602.27,0.00016438,2]
[351602955,1738657838650,-500.0,0.00016438,2]
[351602957,1738657838660,-2556.79,0.00016438,2]
[351602959,1738657838669,-500.0,0.00016438,2]
[351602960,1738657838678,-500.0,0.00016438,2]
[351602961,1738657838688,-959.76,0.00016438,2]
[351602962,1738657838697,-500.0,0.00016438,2]
[351602963,1738657838706,-500.0,0.00016438,2]
[351602964,1738657838719,-500.0,0.00016438,2]
[351602965,1738657838728,-500.0,0.00016438,2]
[351602966,1738657838738,-500.0,0.00016438,2]
[351602967,1738657838747,-566.84,0.00016438,2]
[351602968,1738657838757,-500.0,0.00016438,2]
[351602969,1738657838766,-500.0,0.00016438,2]
[351602970,1738657838776,-862.82,0.00016438,2]
[351602971,1738657838785,-235.73434176,0.00016438,2]
[351602972,1738657838798,-264.26565824,0.00016438,2]
[351602973,1738657838808,-2083.23254299,0.00016438,2]
[351602974,1738657838820,-5215.59745701,0.00016438,2]
[351602975,1738657838829,-13161.49621301,0.00016438,2]
[351602976,1738657838841,-1528.41378699,0.00016438,2]
[351602977,1738657838850,-500.0,0.00016438,2]
[351602978,1738657838859,-500.0,0.00016438,2]
[351602979,1738657838996,-500.0,0.00016438,2]
[351602980,1738657839006,-500.0,0.00016438,2]
[351602981,1738657839016,-500.0,0.00016438,2]
[351602982,1738657839025,-891.13,0.00016438,2]
[351602983,1738657839035,-500.0,0.00016438,2]
[351602984,1738657839044,-500.0,0.00016438,2]
[351602985,1738657839053,-500.0,0.00016438,2]
[351602986,1738657839063,-618.69,0.00016438,2]
[351602987,1738657839072,-705.99,0.00016438,2]
[351602988,1738657839082,-618.69,0.00016438,2]
[351602989,1738657839091,-618.69,0.00016438,2]
[351602990,1738657839101,-618.69,0.00016438,2]
[351602991,1738657839111,-618.69,0.00016438,2]
[351602992,1738657839120,-618.69,0.00016438,2]
[351602993,1738657839130,-500.0,0.00016438,2]
[351602994,1738657839140,-618.69,0.00016438,2]
[351602995,1738657839151,-618.69,0.00016438,2]
[351602996,1738657839162,-500.0,0.00016438,2]
[351602997,1738657839171,-500.0,0.00016438,2]
[351602998,1738657839180,-500.0,0.00016438,2]
[351602999,1738657839189,-948.85,0.00016438,2]
[351603000,1738657839200,-500.0,0.00016438,2]
[351603001,1738657839209,-500.0,0.00016438,2]
[351603002,1738657839220,-502.82,0.00016438,2]
[351603003,1738657839230,-500.0,0.00016438,2]
[351603004,1738657839240,-500.0,0.00016438,2]
[351603005,1738657839249,-314.82547753,0.00016438,2]
[351603006,1738657839259,-500.0,0.00016438,2]
[351603007,1738657839268,-500.0,0.00016438,2]
[351603008,1738657839277,-507.83812188,0.00016438,2]
[351603009,1738657839287,-500.0,0.00016438,2]
[351603010,1738657839296,-500.0,0.00016438,2]
[351603011,1738657839306,-405.62007745,0.00016438,2]
[351603012,1738657839319,-94.37992255,0.00016438,2]
[351603013,1738657839328,-500.0,0.00016438,2]
[351603014,1738657839339,-500.0,0.00016438,2]
[351603015,1738657839350,-303.78036117,0.00016438,2]
[351603016,1738657839360,-200.2267951,0.00016438,2]
[351603017,1738657839371,-500.0,0.00016438,2]
[351603018,1738657839381,-1440.08,0.00016438,2]
[351603019,1738657839391,-500.0,0.00016438,2]
[351603020,1738657839400,-500.0,0.00016438,2]
[351603021,1738657839409,-500.0,0.00016438,2]
[351603022,1738657839418,-500.0,0.00016438,2]
[351603023,1738657839428,-500.0,0.00016438,2]
[351603024,1738657839438,-972.33,0.00016438,2]
[351603025,1738657839447,-500.0,0.00016438,2]
[351603026,1738657839456,-764.04,0.00016438,2]
[351603027,1738657839467,-500.0,0.00016438,2]
[351603028,1738657839477,-500.0,0.00016438,2]
[351603029,1738657839486,-501.89589802,0.00016438,2]
[351603030,1738657839499,-918.28,0.00016438,2]
[351603031,1738657839508,-500.0,0.00016438,2]
[351603032,1738657839517,-500.0,0.00016438,2]
[351603033,1738657839527,-500.0,0.00016438,2]
[351603034,1738657839536,-500.0,0.00016438,2]
[351603035,1738657839546,-501.56441072,0.00016438,2]
[351603036,1738657839555,-500.0,0.00016438,2]
[351603037,1738657839564,-668.42,0.00016438,2]
[351603038,1738657839574,-500.0,0.00016438,2]
[351603039,1738657839583,-500.0,0.00016438,2]
[351603040,1738657839593,-627.9,0.00016438,2]
[351603041,1738657839603,-500.0,0.00016438,2]
[351603042,1738657839612,-617.60781706,0.00016438,2]
[351603043,1738657839622,-500.0,0.00016438,2]
[351603044,1738657839631,-500.0,0.00016438,2]
[351603045,1738657839641,-1759.95,0.00016438,2]
[351603046,1738657839650,-507.92366608,0.00016438,2]
[351603047,1738657839659,-500.0,0.00016438,2]
[351603048,1738657839668,-500.0,0.00016438,2]
[351603049,1738657839678,-500.0,0.00016438,2]
[351603050,1738657839687,-500.0,0.00016438,2]
[351603051,1738657839696,-500.0,0.00016438,2]
[351603052,1738657839706,-500.0,0.00016438,2]
[351603053,1738657839718,-500.0,0.00016438,2]
[351603054,1738657839728,-500.0,0.00016438,2]
[351603055,1738657839738,-203.52195275,0.00016438,2]
[351603056,1738657839748,-761.72,0.00016438,2]
[351603057,1738657839758,-500.0,0.00016438,2]
[351603058,1738657839770,-500.0,0.00016438,2]
[351603059,1738657839780,-1074.11,0.00016438,2]
[351603060,1738657839790,-4129.34,0.00016438,2]
[351603061,1738657839800,-500.0,0.00016438,2]
[351603062,1738657839810,-500.0,0.00016438,2]
[351603063,1738657839821,-500.0,0.00016438,2]
[351603064,1738657839831,-810.85,0.00016438,2]
[351603065,1738657839842,-500.0,0.00016438,2]
[351603066,1738657839851,-500.0,0.00016438,2]
[351603067,1738657839863,-1545.66,0.00016438,2]
[351603068,1738657839873,-2559.25,0.00016438,2]
[351603069,1738657839883,-500.0,0.00016438,2]
[351603070,1738657839893,-500.0,0.00016438,2]
[351603071,1738657839903,-4364.02,0.00016438,2]
[351603072,1738657839913,-500.0,0.00016438,2]
[351603073,1738657839923,-505.33094631,0.00016438,2]
[351603074,1738657839934,-500.0,0.00016438,2]
[351603075,1738657839943,-500.0,0.00016438,2]
[351603076,1738657839954,-500.0,0.00016438,2]
[351603077,1738657839972,-500.0,0.00016438,2]
[351603078,1738657839982,-1583.77,0.00016438,2]
[351603079,1738657839993,-500.0,0.00016438,2]
[351603080,1738657840003,-500.0,0.00016438,2]
[351603081,1738657840012,-355.13731199,0.00016438,2]
[351603082,1738657840022,-500.0,0.00016438,2]
[351603083,1738657840032,-5645.29,0.00016438,2]
[351603084,1738657840042,-500.0,0.00016438,2]
[351603085,1738657840052,-500.0,0.00016438,2]
[351603086,1738657840063,-500.0,0.00016438,2]
[351603087,1738657840073,-309.88007562,0.00016438,2]
[351603088,1738657840083,-500.0,0.00016438,2]
[351603089,1738657840092,-366.75035356,0.00016438,2]
[351603090,1738657840105,-133.24964644,0.00016438,2]
[351603091,1738657840114,-500.0,0.00016438,2]
[351603092,1738657840124,-500.0,0.00016438,2]
[351603093,1738657840133,-500.0,0.00016438,2]
[351603094,1738657840142,-500.0,0.00016438,2]
[351603095,1738657840152,-762.57,0.00016438,2]
[351603096,1738657840163,-597.6874352,0.00016473,2]
[351603097,1738657840173,-500.0,0.00016473,2]
[351603098,1738657840182,-691.46,0.00016498,2]
[351603099,1738657840191,-618.69,0.00016498,2]
[351603100,1738657840202,-202.10579003,0.000165,2]
[351603102,1738657840215,-4444.05833225,0.000165,2]
[351603105,1738657840233,-477.13672179,0.000165,2]
[351603107,1738657840246,-133232.1005022,0.000165,2]
[351603109,1738657840256,-691.46,0.00016574,2]
[351603111,1738657840265,-691.46,0.00016574,2]
[351603113,1738657840274,-691.46,0.00016574,2]
[351603115,1738657840284,-691.46,0.00016574,2]
[351603117,1738657840293,-618.69,0.00016574,2]
[351603119,1738657840302,-618.69,0.00016574,2]
[351603121,1738657840312,-618.69,0.00016574,2]
[351603123,1738657840322,-618.69,0.00016574,2]
[351603125,1738657840331,-198.74518294,0.00016574,2]
[351603127,1738657840340,-500.0,0.00016574,2]
[351603129,1738657840349,-500.0,0.00016574,2]
[351603131,1738657840359,-500.0,0.00016574,2]
[351603133,1738657840369,-500.0,0.00016574,2]
[351603135,1738657840378,-500.0,0.00016574,2]
[351603137,1738657840387,-500.0,0.00016574,2]
[351603139,1738657840397,-500.0,0.00016574,2]
[351603141,1738657840407,-241.40953816,0.00016574,2]
[351603143,1738657840416,-500.0,0.00016574,2]
[351603145,1738657840425,-500.0,0.00016574,2]
[351603147,1738657840435,-500.0,0.00016574,2]
[351603149,1738657840444,-500.0,0.00016574,2]
[351603151,1738657840454,-500.0,0.00016574,2]
[351603153,1738657840466,-500.0,0.00016574,2]
[351603155,1738657840475,-500.0,0.00016574,2]
[351603157,1738657840484,-500.0,0.00016574,2]
[351603159,1738657840494,-500.0,0.00016574,2]
[351603161,1738657840504,-500.0,0.00016574,2]
[351603163,1738657840514,-500.0,0.00016574,2]
[351603165,1738657840524,-500.0,0.00016574,2]
[351603167,1738657840533,-500.0,0.00016574,2]
[351603169,1738657840543,-500.0,0.00016574,2]
[351603171,1738657840552,-597.61211013,0.00016574,2]
[351603173,1738657840562,-500.0,0.00016574,2]
[351603175,1738657840571,-500.0,0.00016574,2]
[351603177,1738657840581,-500.0,0.00016574,2]
[351603179,1738657840591,-500.0,0.00016574,2]
[351603181,1738657840600,-500.0,0.00016574,2]
[351603183,1738657840610,-500.0,0.00016574,2]
[351603185,1738657840623,-500.0,0.00016574,2]
[351603187,1738657840632,-500.0,0.00016574,2]
[351603189,1738657840642,-500.0,0.00016574,2]
[351603191,1738657840650,-500.0,0.00016574,2]
[351603192,1738657840660,-500.0,0.00016574,2]
[351603194,1738657840670,-500.0,0.00016574,2]
[351603196,1738657840679,-500.0,0.00016574,2]
[351603198,1738657840689,-500.0,0.00016574,2]
[351603201,1738657840698,-500.0,0.00016574,2]
[351603203,1738657840708,-500.0,0.00016574,2]
[351603205,1738657840719,-500.0,0.00016574,2]
[351603207,1738657840730,-500.0,0.00016574,2]
[351603209,1738657840739,-500.0,0.00016574,2]
[351603211,1738657840749,-480.61979534,0.00016574,2]
[351603213,1738657840759,-500.0,0.00016574,2]
[351603215,1738657840768,-500.0,0.00016574,2]
[351603217,1738657840778,-500.0,0.00016574,2]
[351603219,1738657840787,-500.0,0.00016574,2]
[351603221,1738657840796,-500.0,0.00016574,2]
[351603223,1738657840806,-500.0,0.00016574,2]
[351603225,1738657840815,-500.0,0.00016574,2]
[351603227,1738657840824,-500.0,0.00016574,2]
[351603229,1738657840835,-500.0,0.00016574,2]
[351603231,1738657840844,-500.0,0.00016575,2]
[351603233,1738657840853,-500.0,0.00016575,2]
[351603235,1738657840863,-378.27194955,0.00016575,2]
[351603237,1738657840872,-500.0,0.00016575,2]
[351603239,1738657840882,-606.49904092,0.00016575,2]
[351603241,1738657840890,-500.0,0.00016575,2]
[351603243,1738657840899,-500.0,0.00016575,2]
[351603245,1738657840908,-500.0,0.00016575,2]
[351603247,1738657840917,-500.0,0.00016575,2]
[351603249,1738657840926,-500.0,0.00016575,2]
[351603251,1738657840936,-500.0,0.00016575,2]
[351603253,1738657840945,-500.0,0.00016575,2]
[351603255,1738657840954,-500.0,0.00016575,2]
[351603257,1738657840966,-642.01,0.00016575,2]
[351603259,1738657840975,-628.17,0.00016575,2]
[351603261,1738657840984,-500.0,0.00016575,2]
[351603263,1738657840993,-500.0,0.00016575,2]
[351603265,1738657841003,-500.0,0.00016575,2]
[351603267,1738657841013,-330.38914882,0.00016575,2]
[351603269,1738657841023,-528.36,0.00016575,2]
[351603271,1738657841032,-500.0,0.00016575,2]
[351603273,1738657841042,-500.0,0.00016575,2]
[351603275,1738657841051,-500.0,0.00016575,2]
[351603277,1738657841061,-500.0,0.00016575,2]
[351603279,1738657841070,-500.0,0.00016575,2]
[351603281,1738657841080,-500.0,0.00016575,2]
[351603282,1738657841090,-500.0,0.00016575,2]
[351603283,1738657841100,-500.0,0.00016575,2]
[351603284,1738657841109,-500.0,0.00016575,2]
[351603285,1738657841119,-500.72581228,0.00016575,2]
[351603286,1738657841129,-500.0,0.00016575,2]
[351603287,1738657841138,-500.0,0.00016575,2]
[351603288,1738657841148,-1333.73,0.00016575,2]
[351603289,1738657841162,-3308.02,0.00016575,2]
[351603290,1738657841172,-500.0,0.00016575,2]
[351603291,1738657841181,-500.0,0.00016575,2]
[351603292,1738657841191,-500.0,0.00016575,2]
[351603293,1738657841203,-500.0,0.00016575,2]
[351603294,1738657841216,-573.89,0.00016575,2]
[351603295,1738657841226,-500.0,0.00016575,2]
[351603296,1738657841238,-390.85512548,0.00016575,2]
[351603297,1738657841248,-500.0,0.00016575,2]
[351603298,1738657841258,-500.0,0.00016575,2]
[351603299,1738657841268,-500.0,0.00016575,2]
[351603300,1738657841278,-500.0,0.00016575,2]
[351603301,1738657841287,-500.0,0.00016575,2]
[351603302,1738657841297,-565.62213839,0.00016575,2]
[351603303,1738657841306,-500.0,0.00016575,2]
[351603304,1738657841316,-500.0,0.00016575,2]
[351603305,1738657841327,-500.0,0.00016575,2]
[351603306,1738657841336,-544.43,0.00016575,2]
[351603307,1738657841345,-500.0,0.00016575,2]
[351603309,1738657841356,-500.0,0.00016575,2]
[351603311,1738657841365,-500.0,0.00016575,2]
[351603313,1738657841375,-500.0,0.00016575,2]
[351603315,1738657841384,-500.0,0.00016575,2]
[351603317,1738657841393,-500.0,0.00016575,2]
[351603319,1738657841402,-1585.63,0.00016575,2]
[351603321,1738657841411,-500.0,0.00016575,2]
[351603323,1738657841421,-990.44,0.00016575,2]
[351603325,1738657841430,-500.0,0.00016575,2]
[351603327,1738657841439,-602.27,0.00016575,2]
[351603329,1738657841448,-500.0,0.00016575,2]
[351603331,1738657841458,-2556.79,0.00016575,2]
[351603333,1738657841471,-500.0,0.00016575,2]
[351603335,1738657841480,-500.0,0.00016575,2]
[351603337,1738657841490,-959.76,0.00016575,2]
[351603339,1738657841499,-500.0,0.00016575,2]
[351603341,1738657841509,-500.0,0.00016575,2]
[351603343,1738657841517,-500.0,0.00016575,2]
[351603345,1738657841527,-500.0,0.00016575,2]
[351603347,1738657841536,-500.0,0.00016575,2]
[351603349,1738657841546,-566.84,0.00016575,2]
[351603351,1738657841555,-500.0,0.00016575,2]
[351603353,1738657841565,-862.82,0.00016575,2]
[351603355,1738657841575,-500.0,0.00016575,2]
[351603358,1738657841587,-7298.83,0.00016575,2]
[351603360,1738657841597,-14689.91,0.00016575,2]
[351603361,1738657841607,-500.0,0.00016575,2]
[351603364,1738657841617,-500.0,0.00016575,2]
[351603366,1738657841627,-500.0,0.00016575,2]
[351603368,1738657841637,-891.13,0.00016575,2]
[351603370,1738657841647,-588.95290382,0.00016575,2]
[351603372,1738657841658,-500.0,0.00016575,2]
[351603374,1738657841667,-500.0,0.00016575,2]
[351603376,1738657841677,-705.99,0.00016575,2]
[351603377,1738657841686,-500.0,0.00016575,2]
[351603379,1738657841695,-500.0,0.00016575,2]
[351603381,1738657841705,-500.0,0.00016575,2]
[351603383,1738657841718,-500.0,0.00016575,2]
[351603386,1738657841728,-948.85,0.00016575,2]
[351603388,1738657841739,-500.0,0.00016575,2]
[351603390,1738657841749,-502.82,0.00016575,2]
[351603391,1738657841758,-500.0,0.00016575,2]
[351603393,1738657841767,-500.0,0.00016575,2]
[351603395,1738657841778,-500.0,0.00016575,2]
[351603397,1738657841787,-500.0,0.00016575,2]
[351603399,1738657841797,-500.0,0.00016575,2]
[351603401,1738657841806,-351.48,0.00016575,2]
[351603404,1738657841816,-500.0,0.00016575,2]
[351603406,1738657841826,-500.0,0.00016575,2]
[351603408,1738657841835,-1440.08,0.00016575,2]
[351603409,1738657841844,-500.0,0.00016575,2]
[351603411,1738657841853,-507.8949998,0.00016575,2]
[351603414,1738657841863,-500.0,0.00016575,2]
[351603415,1738657841873,-972.33,0.00016575,2]
[351603417,1738657841882,-500.0,0.00016575,2]
[351603419,1738657841891,-764.04,0.00016575,2]
[351603421,1738657841901,-500.0,0.00016575,2]
[351603424,1738657841911,-500.0,0.00016575,2]
[351603425,1738657841921,-918.28,0.00016575,2]
[351603427,1738657841931,-500.0,0.00016575,2]
[351603429,1738657841941,-500.0,0.00016575,2]
[351603432,1738657841952,-500.0,0.00016575,2]
[351603434,1738657841961,-668.42,0.00016575,2]
[351603436,1738657841972,-500.0,0.00016575,2]
[351603437,1738657841982,-627.9,0.00016575,2]
[351603440,1738657841991,-500.0,0.00016575,2]
[351603441,1738657842001,-500.0,0.00016575,2]
[351603443,1738657842011,-1759.95,0.00016575,2]
[351603446,1738657842020,-500.0,0.00016575,2]
[351603447,1738657842030,-500.0,0.00016575,2]
[351603450,1738657842040,-500.0,0.00016575,2]
[351603452,1738657842049,-761.72,0.00016575,2]
[351603454,1738657842059,-500.0,0.00016575,2]
[351603456,1738657842069,-1074.11,0.00016575,2]
[351603458,1738657842078,-4129.34,0.00016575,2]
[351603460,1738657842088,-168.00597332,0.00016575,2]
[351603462,1738657842097,-810.85,0.00016575,2]
[351603464,1738657842107,-1545.66,0.00016575,2]
[351603466,1738657842116,-2559.25,0.00016575,2]
[351603479,1738657842243,-4364.02,0.00016575,2]
[351603481,1738657842254,-500.0,0.00016575,2]
[351603484,1738657842263,-500.0,0.00016575,2]
[351603485,1738657842273,-500.0,0.00016575,2]
[351603487,1738657842282,-500.0,0.00016575,2]
[351603490,1738657842292,-1583.77,0.00016575,2]
[351603492,1738657842302,-500.0,0.00016575,2]
[351603493,1738657842311,-500.0,0.00016575,2]
[351603496,1738657842321,-5645.29,0.00016575,2]
[351603498,1738657842331,-500.0,0.00016575,2]
[351603499,1738657842341,-500.0,0.00016575,2]
[351603502,1738657842351,-500.0,0.00016575,2]
[351603503,1738657842360,-500.0,0.00016575,2]
[351603505,1738657842370,-500.0,0.00016575,2]
[351603507,1738657842379,-762.57,0.00016575,2]
[351603509,1738657842388,-2547.95,0.000167,2]
[351603511,1738657842398,-691.46,0.00016711,2]
[351603514,1738657842408,-691.46,0.00016711,2]
[351603516,1738657842417,-691.46,0.00016711,2]
[351603518,1738657842426,-691.46,0.00016711,2]
[351603519,1738657842436,-618.69,0.00016711,2]
[351603521,1738657842446,-618.69,0.00016711,2]
[351603524,1738657842456,-618.69,0.00016711,2]
[351603525,1738657842466,-618.69,0.00016711,2]
[351603527,1738657842476,-373.72105351,0.00016712,2]
[351603529,1738657842486,-500.0,0.00016712,2]
[351603531,1738657842496,-500.0,0.00016712,2]
[351603533,1738657842505,-500.0,0.00016712,2]
[351603535,1738657842515,-500.0,0.00016712,2]
[351603537,1738657842524,-500.0,0.00016712,2]
[351603539,1738657842533,-500.0,0.00016712,2]
[351603541,1738657842543,-500.0,0.00016712,2]
[351603543,1738657842552,-500.0,0.00016712,2]
[351603545,1738657842562,-642.01,0.00016712,2]
[351603547,1738657842571,-628.17,0.00016712,2]
[351603549,1738657842581,-500.0,0.00016712,2]
[351603551,1738657842591,-500.0,0.00016712,2]
[351603553,1738657842601,-528.36,0.00016712,2]
[351603555,1738657842610,-500.0,0.00016712,2]
[351603557,1738657842619,-500.0,0.00016712,2]
[351603559,1738657842628,-500.0,0.00016712,2]
[351603561,1738657842638,-1333.73,0.00016712,2]
[351603563,1738657842647,-3308.02,0.00016712,2]
[351603565,1738657842656,-600.39066318,0.00016712,2]
[351603567,1738657842665,-573.89,0.00016712,2]
[351603569,1738657842674,-186.5053653,0.00016712,2]
[351603571,1738657842685,-500.0,0.00016712,2]
[351603573,1738657842695,-500.0,0.00016712,2]
[351603575,1738657842704,-500.0,0.00016712,2]
[351603578,1738657842714,-544.43,0.00016712,2]
[351603579,1738657842724,-500.0,0.00016712,2]
[351603581,1738657842733,-500.0,0.00016712,2]
[351603583,1738657842742,-500.0,0.00016712,2]
[351603585,1738657842752,-500.0,0.00016712,2]
[351603587,1738657842761,-1585.63,0.00016712,2]
[351603590,1738657842771,-500.0,0.00016712,2]
[351603592,1738657842780,-990.44,0.00016712,2]
[351603594,1738657842789,-602.27,0.00016712,2]
[351603595,1738657842799,-500.0,0.00016712,2]
[351603597,1738657842808,-2556.79,0.00016712,2]
[351603600,1738657842817,-959.76,0.00016712,2]
[351603601,1738657842827,-500.0,0.00016712,2]
[351603604,1738657842836,-513.93161765,0.00016712,2]
[351603605,1738657842846,-500.0,0.00016712,2]
[351603607,1738657842855,-566.84,0.00016712,2]
[351603609,1738657842865,-500.0,0.00016712,2]
[351603611,1738657842874,-862.82,0.00016712,2]
[351603613,1738657842884,-500.0,0.00016712,2]
[351603615,1738657842894,-7298.83,0.00016712,2]
[351603617,1738657842903,-14689.91,0.00016712,2]
[351603619,1738657842913,-500.0,0.00016712,2]
[351603621,1738657842922,-500.0,0.00016712,2]
[351603623,1738657842931,-891.13,0.00016712,2]
[351603626,1738657842941,-500.0,0.00016712,2]
[351603628,1738657842950,-705.99,0.00016712,2]
[351603629,1738657842959,-500.0,0.00016712,2]
[351603632,1738657842970,-500.0,0.00016712,2]
[351603633,1738657842980,-500.0,0.00016712,2]
[351603636,1738657842990,-948.85,0.00016712,2]
[351603638,1738657842999,-500.0,0.00016712,2]
[351603640,1738657843009,-502.82,0.00016712,2]
[351603642,1738657843018,-500.0,0.00016712,2]
[351603643,1738657843027,-500.0,0.00016712,2]
[351603645,1738657843036,-500.0,0.00016712,2]
[351603647,1738657843045,-500.0,0.00016712,2]
[351603649,1738657843054,-1440.08,0.00016712,2]
[351603651,1738657843063,-500.0,0.00016712,2]
[351603653,1738657843072,-972.33,0.00016712,2]
[351603655,1738657843082,-764.04,0.00016712,2]
[351603657,1738657843091,-500.0,0.00016712,2]
[351603659,1738657843101,-918.28,0.00016712,2]
[351603661,1738657843110,-500.0,0.00016712,2]
[351603663,1738657843119,-500.0,0.00016712,2]
[351603666,1738657843129,-668.42,0.00016712,2]
[351603669,1738657843138,-260.07828032,0.00016712,2]
[351603672,1738657843148,-627.9,0.00016712,2]
[351603673,1738657843162,-500.0,0.00016712,2]
[351603676,1738657843171,-1759.95,0.00016712,2]
[351603679,1738657843180,-500.0,0.00016712,2]
[351603682,1738657843190,-500.0,0.00016712,2]
[351603686,1738657843201,-500.0,0.00016712,2]
[351603689,1738657843211,-761.72,0.00016712,2]
[351603692,1738657843223,-500.0,0.00016712,2]
[351603694,1738657843234,-1074.11,0.00016712,2]
[351603696,1738657843244,-4129.34,0.00016712,2]
[351603697,1738657843254,-810.85,0.00016712,2]
[351603700,1738657843264,-1545.66,0.00016712,2]
[351603702,1738657843274,-2559.25,0.00016712,2]
[351603704,1738657843285,-4364.02,0.00016712,2]
[351603706,1738657843295,-500.0,0.00016712,2]
[351603708,1738657843305,-500.0,0.00016712,2]
[351603710,1738657843315,-1583.77,0.00016712,2]
[351603711,1738657843324,-500.0,0.00016712,2]
[351603713,1738657843334,-500.0,0.00016712,2]
[351603715,1738657843344,-5645.29,0.00016712,2]
[351603717,1738657843353,-500.0,0.00016712,2]
[351603719,1738657843363,-500.0,0.00016712,2]
[351603721,1738657843372,-392.41566436,0.00016712,2]
[351603723,1738657843381,-500.0,0.00016712,2]